[Event "Amsterdam Chess Open 2024"]
[Site "Amsterdam"]
[Date "2024.11.01"]
[Round "1.1"]
[White "Vroombout, Enrico"]
[Black "Van den Doel, Erik"]
[Result "0-1"]
[ECO "C88"]
[WhiteElo "2086"]
[BlackElo "2557"]
[Annotator "TA"]
[PlyCount "58"]
[EventDate "2024.10.31"]
[EventType "swiss"]
[EventCountry "NED"]
[SourceTitle "playchess.com"]
[Source "ChessBase"]
[SourceQuality "1"]
[TimeControl "5400+30"]

{[%evp 19,58,19,16,8,39,26,46,45,41,34,51,42,44,0,0,0,23,35,25,20,72,69,70,24,20,20,20,20,16,14,21,-13,-16,-132,-143,-460,-464,-742,-538,-1523,-1474]} 1. e4 {[%emt 0:00:06]} e5 {[%emt 0:02:31]} 2. Nf3 {[%emt 0:00:04]} Nc6 {[%emt 0:00:03]} 3. Bb5 {[%emt 0:00:05]} a6 {[%emt 0:00:05]} 4. Ba4 {[%emt 0:00:04]} Nf6 {[%emt 0:00:04]} 5. O-O {[%emt 0:00:11]} Be7 {[%emt 0:00:05]} 6. Re1 {[%emt 0:00:04]} b5 {[%emt 0:00:12]} 7. Bb3 {[%emt 0:00:05]} O-O {[%emt 0:00:06]} 8. a4 {[%emt 0:01:08]} Bb7 {[%emt 0:00:05]} 9. d3 {[%emt 0:00:13]} d6 {[%emt 0:00:16]} 10. Bd2 {[%emt 0:02:47]} b4 {[%emt 0:02:02]} 11. a5 {[%emt 0:02:13]} Kh8 {[%emt 0:19:48]} 12. c3 {[%emt 0:13:27]} Rb8 {[%emt 0:00:45]} 13. d4 {[%emt 0:15:03] White is slightly better.} bxc3 {[%emt 0:12:27]} 14. bxc3 {[%emt 0:00:05]} (14. Bxc3 Nxd4 15. Nxd4 exd4 16. Bxd4 c5 $17 (16... Bxe4 $2 17. Bxf6 Bxf6 18. Rxe4 $18) (16... Nxe4 17. Nc3 $15)) 14... exd4 {[%emt 0:00:20]} 15. cxd4 {[%emt 0:00:09]} d5 {[%emt 0:00:18]} 16. e5 {[%emt 0:14:27]} Ne4 {[%emt 0:01:13]} 17. Nc3 {[%emt 0:00:15]} Nb4 {[%emt 0:19:49]} 18. Nxe4 {[%emt 0:18:14]} dxe4 {[%emt 0:00:26]} 19. Ng5 {[%emt 0:00:08]} Bxg5 {[%emt 0:22:31]} (19... Bd5 $11 {keeps the balance.} 20. Nxe4 Bxb3 21. Qxb3 Qxd4) 20. Bxb4 $16 {[%emt 0:00:04]} Be7 {[%emt 0:00:10]} 21. Bc3 {[%emt 0:06:38]} (21. Bxe7 $14 Qxe7 22. Rc1) 21... Bd5 $11 {[%emt 0:04:10]} 22. Bc2 {[%emt 0:05:16][%cal Bb3c2,Bc2e4,Be4d3][%mdl 32]} f5 {[%emt 0:01:24]} 23. exf6 {[%emt 0:04:35]} Bxf6 {[%emt 0:00:07]} 24. Bxe4 {[%emt 0:05:18]} c5 {[%emt 0:01:22]} 25. Bd3 {[%emt 0:05:52][%cal Oa1b1]} (25. dxc5 $2 {is the wrong capture.} Bxc3 26. Qxd5 Qf6 $19) (25. h3 {simplifies} Bxe4 26. Rxe4 Qd7 27. Qd3) 25... Rb3 {[%emt 0:05:38]} 26. Qh5 {[%emt 0:04:14] [#]} Bg8 $1 $17 {[%emt 0:01:11]} 27. Rac1 {[%emt 0:01:30][%mdl 8192]} (27. Qxc5 $17 {nothing else works.} Rxc3 28. Qxc3 Bxd4 29. Qa3 Rxf2 (29... Bxa1 30. Rxa1 Qd4 31. Rf1 $14) 30. Kh1 Bxa1 31. Rxa1) 27... cxd4 $19 {[%emt 0:01:45] Black is clearly winning.} 28. Red1 {[%emt 0:00:03]} (28. Bb4 $142 Rxb4 29. Rc6) 28... Rxc3 {[%emt 0:00:59]} 29. Bxh7 {[%emt 0:01:20]} Bxh7 {[%emt 0:00:12] Weighted Error Value: White=1.12/Black=0.25 (precise) .  Loses game:     	White=1     	---        Mistake:       	White=3     	Black=1      Inaccurate:     	White=3     	Black=1      OK:         	White=6     	Black=7      Best:        	White=1     	Black=2      Strong:       	---       	Black=1} 0-1

[Event "Amsterdam Chess Open 2024"]
[Site "Amsterdam"]
[Date "2024.11.01"]
[Round "1.2"]
[White "Sharan, Rao"]
[Black "Verhoeven, Robin"]
[Result "1-0"]
[ECO "A06"]
[WhiteElo "2401"]
[BlackElo "2080"]
[Annotator "RC"]
[PlyCount "115"]
[EventDate "2024.10.31"]
[EventType "swiss"]
[EventCountry "NED"]
[SourceTitle "playchess.com"]
[Source "ChessBase"]
[SourceQuality "1"]
[TimeControl "5400+30"]

1. Nf3 {[%emt 0:00:05]} d5 {[%emt 0:00:12]} 2. b3 {[%emt 0:00:06]} Nf6 {[%emt 0:00:16]} 3. Bb2 {[%emt 0:00:04]} c5 {[%emt 0:00:37]} 4. e3 {[%emt 0:00:04]} Nc6 {[%emt 0:00:33]} 5. Be2 {[%emt 0:00:27]} e6 {[%emt 0:04:34]} 6. O-O {[%emt 0:00:11]} Bd6 {[%emt 0:00:12]} 7. d4 {[%emt 0:00:08]} Qc7 {[%emt 0:01:47]} 8. dxc5 {[%emt 0:03:31]} Bxc5 {[%emt 0:01:30]} 9. c4 {[%emt 0:01:04]} dxc4 {[%emt 0:02:43]} 10. Bxc4 {[%emt 0:00:38]} a6 {[%emt 0:02:26]} 11. Nbd2 {[%emt 0:02:55]} b5 {[%emt 0:07:35]} 12. Be2 {[%emt 0:00:32]} Bb7 {[%emt 0:00:17]} 13. Rc1 {[%emt 0:02:42]} Qb6 {[%emt 0:04:32]} 14. Bxf6 {[%emt 0:06:23]} gxf6 {[%emt 0:03:24]} 15. Ne4 {[%emt 0:00:13]} Be7 {[%emt 0:00:32]} 16. Nd6+ {[%emt 0:01:15]} Bxd6 {[%emt 0:00:20]} 17. Qxd6 {[%emt 0:00:12]} Rd8 {[%emt 0:01:23]} 18. Qf4 {[%emt 0:00:09]} Ke7 {[%emt 0:00:53]} 19. Rc2 {[%emt 0:01:17]} Rhg8 {[%emt 0:08:43]} 20. Rfc1 {[%emt 0:00:52]} Rd7 {[%emt 0:00:31]} 21. Bf1 {[%emt 0:10:53]} Nb8 {[%emt 0:13:18]} 22. Nd4 {[%emt 0:08:59]} Qd6 {[%emt 0:02:01]} 23. Qh4 {[%emt 0:04:12]} Qd5 {[%emt 0:01:34]} 24. f3 {[%emt 0:00:20]} Qg5 {[%emt 0:07:51]} 25. Qf2 {[%emt 0:00:35]} Rgd8 {[%emt 0:02:11]} 26. b4 {[%emt 0:11:45]} Bd5 {[%emt 0:05:41]} 27. Rc5 {[%emt 0:01:52]} e5 {[%emt 0:06:43]} 28. f4 {[%emt 0:07:51]} Qg6 {[%emt 0:02:14]} 29. Nf3 {[%emt 0:04:00]} Qf5 {[%emt 0:02:47]} 30. fxe5 {[%emt 0:02:04]} fxe5 {[%emt 0:00:13]} 31. e4 {[%emt 0:00:49]} Qxe4 {[%emt 0:00:16]} 32. Re1 {[%emt 0:00:35]} Qxb4 {[%emt 0:01:19]} 33. Nxe5 {[%emt 0:01:05]} Be6 {[%emt 0:00:32]} 34. Nxd7 {[%emt 0:05:35]} Nxd7 {[%emt 0:01:41]} 35. Rf5 {[%emt 0:00:10]} Rf8 {[%emt 0:01:12]} 36. Rf4 {[%emt 0:00:47]} Qc5 {[%emt 0:00:17]} 37. Rd4 {[%emt 0:00:09]} Nf6 {[%emt 0:01:38]} 38. Red1 {[%emt 0:01:10]} Qe5 {[%emt 0:01:03]} 39. h3 {[%emt 0:01:38]} Rg8 {[%emt 0:01:18]} 40. Rf4 {[%emt 0:01:48]} Nd5 {[%emt 0:02:51]} 41. Rxf7+ {[%emt 0:09:16]} Bxf7 {[%emt 0:00:13]} 42. Re1 {[%emt 0:00:04]} Qxe1 {[%emt 0:00:22]} 43. Qxe1+ {[%emt 0:00:01]} Kd6 {[%emt 0:00:31]} 44. Qf2 {[%emt 0:00:06]} Be6 {[%emt 0:00:57]} 45. Qa7 {[%emt 0:00:31]} Nc7 {[%emt 0:00:19]} 46. Qb6+ {[%emt 0:02:06]} Kd7 {[%emt 0:00:06]} 47. Bd3 {[%emt 0:00:49]} Bxh3 {[%emt 0:02:10]} 48. Be4 {[%emt 0:00:05]} Be6 {[%emt 0:00:19]} 49. Bc6+ {[%emt 0:00:17]} Kd8 {[%emt 0:00:28]} 50. Qb8+ {[%emt 0:00:20]} Bc8 {[%emt 0:00:07]} 51. Qb6 {[%emt 0:00:44]} Be6 {[%emt 0:01:17]} 52. Bb7 {[%emt 0:00:06]} Rg7 {[%emt 0:03:46]} 53. Bxa6 {[%emt 0:00:31]} Bc4 {[%emt 0:03:30]} 54. a4 {[%emt 0:01:56]} Rg6 {[%emt 0:00:56]} 55. Qb8+ {[%emt 0:00:13]} Kd7 {[%emt 0:00:05]} 56. Bc8+ {[%emt 0:00:26]} Kc6 {[%emt 0:00:25]} 57. Qb7+ {[%emt 0:00:05]} Kd6 {[%emt 0:00:34]} 58. Qb6+ {[%emt 0:00:04]} 1-0

[Event "Amsterdam Chess Open 2024"]
[Site "Amsterdam"]
[Date "2024.11.01"]
[Round "1.3"]
[White "Blomstrom, Lars"]
[Black "Lahaye, Rick"]
[Result "1/2-1/2"]
[ECO "B23"]
[WhiteElo "2077"]
[BlackElo "2400"]
[Annotator "TA"]
[PlyCount "57"]
[EventDate "2024.10.31"]
[EventType "swiss"]
[EventCountry "NED"]
[SourceTitle "playchess.com"]
[Source "ChessBase"]
[SourceQuality "1"]
[TimeControl "5400+30"]

{[%evp 9,57,0,0,-2,-3,-25,-29,-31,-25,-23,-29,-20,-23,-57,-54,-70,-35,-57,0,-15,7,0,2,0,7,0,14,0,76,81,80,80,80,73,99,100,85,46,50,36,37,25,25,25,29,18,29,25,27,27]} 1. e4 {[%emt 0:00:04]} c5 {[%emt 0:00:22]} 2. Nc3 {[%emt 0:00:12]} a6 {[%emt 0:00:18]} 3. f4 {[%emt 0:04:16]} b5 {[%emt 0:00:13]} 4. Nf3 {[%emt 0:00:19]} Bb7 {[%emt 0:00:11]} 5. d3 {[%emt 0:00:51]} e6 {[%emt 0:00:10]} 6. g3 {[%emt 0:00:51]} d5 {[%emt 0:00:32]} 7. e5 {[%emt 0:05:29]} h5 {[%emt 0:02:23]} 8. d4 {[%emt 0:05:02] Black has an edge.} Nh6 {[%emt 0:00:24]} 9. Ne2 {[%emt 0:05:35]} Nc6 {[%emt 0:03:42]} 10. Be3 {[%emt 0:13:33]} Rc8 {[%emt 0:00:31]} 11. h3 {[%emt 0:02:01]} Nf5 {[%emt 0:00:52]} 12. Bf2 {[%emt 0:00:04]} g5 {[%emt 0:15:50]} 13. c3 {[%emt 0:10:23]} gxf4 {[%emt 0:29:26]} 14. gxf4 {[%emt 0:08:04]} cxd4 {[%emt 0:01:24]} 15. Nexd4 {[%emt 0:00:10]} Ncxd4 {[%emt 0:00:19]} 16. Nxd4 {[%emt 0:06:26]} Nxd4 {[%emt 0:00:17]} 17. cxd4 {[%emt 0:04:06]} (17. Qxd4 $2 {too greedy.} Bc5 18. Qd2 Bxf2+ 19. Qxf2 d4 $19) 17... Bb4+ {[%emt 0:04:04]} 18. Ke2 {[%emt 0:00:02]} Qc7 {[%emt 0:00:17]} (18... Kd7 $11) 19. Kf3 {[%emt 0:00:27]} Qc2 {[%emt 0:01:04]} 20. Qxc2 {[%emt 0:00:18]} Rxc2 {[%emt 0:00:03] [#]} 21. Rb1 {[%emt 0:00:23]} Rg8 {[%emt 0:08:37]} 22. Bd3 {[%emt 0:00:20]} Rd2 {[%emt 0:01:06]} 23. Rhd1 {[%emt 0:02:02]} (23. Be2 {seems wilder.} h4 24. Rhc1 Kd7 25. Rg1) 23... Rxd1 $1 {[%emt 0:02:32]} 24. Rxd1 {[%emt 0:00:03]} Be7 {[%emt 0:00:22] Prevents Bh4} 25. Rg1 {[%emt 0:05:40]} Rxg1 {[%emt 0:01:24]} 26. Bxg1 {[%emt 0:00:02]} Kf8 {[%emt 0:01:14]} 27. Bf2 {[%emt 0:04:12]} Kg7 {[%emt 0:01:42]} 28. Be1 {[%emt 0:01:35]} f5 {[%emt 0:00:31]} 29. Ke3 {[%emt 0:04:46] Weighted Error Value: White=0.11 (very precise) /Black=0.15 (very precise) .  Mistake:       	---       	Black=1      Inaccurate:     	White=2     	Black=3      OK:         	White=5     	Black=8      Best:        	White=1     	Black=1      Strong:       	---       	Black=1} 1/2-1/2

[Event "Amsterdam Chess Open 2024"]
[Site "Amsterdam"]
[Date "2024.11.01"]
[Round "1.4"]
[White "Bagrationi, Alexander"]
[Black "Van der Werf, Joel"]
[Result "1-0"]
[ECO "D38"]
[WhiteElo "2391"]
[BlackElo "2075"]
[Annotator "TA"]
[PlyCount "79"]
[EventDate "2024.10.31"]
[EventType "swiss"]
[EventCountry "NED"]
[SourceTitle "playchess.com"]
[Source "ChessBase"]
[SourceQuality "1"]
[TimeControl "5400+30"]

{[%evp 9,79,14,13,-10,52,49,65,61,65,58,78,79,101,97,85,83,106,106,102,102,108,115,108,98,96,100,101,97,95,90,72,77,77,78,86,72,98,96,124,120,110,80,116,80,149,154,151,151,150,70,104,105,138,145,158,146,416,395,420,416,506,479,666,650,1502,1004,5620,4632,29973,29975,29984,29985]} 1. d4 {[%emt 0:00:05]} Nf6 {[%emt 0:00:05]} 2. c4 {[%emt 0:00:15]} e6 {[%emt 0:00:04]} 3. Nf3 {[%emt 0:00:10]} d5 {[%emt 0:00:06]} 4. Nc3 {[%emt 0:00:30]} Bb4 {[%emt 0:00:06]} 5. Qb3 {[%emt 0:01:25]} c5 {[%emt 0:00:52]} 6. cxd5 {[%emt 0:01:43]} Qxd5 {[%emt 0:07:33] [#]} (6... exd5 $11 7. dxc5 Nc6) 7. Qxb4 $1 $14 {[%emt 0:05:36]} cxb4 {[%emt 0:00:38]} 8. Nxd5 {[%emt 0:00:05] White is slightly better.} Nxd5 {[%emt 0:00:11]} 9. e4 {[%emt 0:07:30]} Nf6 {[%emt 0:00:43]} 10. Bd3 {[%emt 0:00:08]} Nc6 {[%emt 0:09:18]} 11. Be3 {[%emt 0:00:17]} O-O {[%emt 0:03:33]} 12. Ne5 {[%emt 0:03:06]} Nxe5 {[%emt 0:13:53]} 13. dxe5 {[%emt 0:00:19]} Nd7 {[%emt 0:00:03]} 14. f4 {[%emt 0:02:39]} Rd8 {[%emt 0:02:38][%cal Od7e5]} 15. O-O-O {[%emt 0:07:45]} Nb8 {[%emt 0:13:50] Black is weak on the dark squares} 16. Bb5 {[%emt 0:08:32][%cal Rd1d8] [#]} Bd7 {[%emt 0:02:33]} 17. Bxd7 {[%emt 0:01:41]} Nxd7 {[%emt 0:00:52]} 18. Kb1 {[%emt 0:00:14]} Kf8 {[%emt 0:14:31]} 19. Rd4 {[%emt 0:03:06]} a5 {[%emt 0:04:22]} 20. Rc1 {[%emt 0:00:29]} Ke8 {[%emt 0:02:30]} 21. Rc7 {[%emt 0:01:55]} b6 {[%emt 0:03:36]} 22. Rd6 {[%emt 0:01:57][%cal Ob1c2]} Rab8 {[%emt 0:01:56]} 23. Bf2 {[%emt 0:04:35] Bh4 would now be deadly. White is much more active.} Nc5 {[%emt 0:06:09]} 24. Bxc5 {[%emt 0:00:22]} bxc5 {[%emt 0:00:05]} 25. Rxc5 $16 {[%emt 0:00:11][%mdl 4096] Endgame. KRR-KRR} a4 {[%emt 0:00:28]} 26. Kc1 {[%emt 0:02:50]} Rbc8 {[%emt 0:02:35]} (26... b3 $142 27. a3 Rbc8 28. Rxd8+ Rxd8) 27. Rxd8+ {[%emt 0:01:23]} Rxd8 {[%emt 0:02:45] KR-KR} 28. Rc4 {[%emt 0:00:12] Prevents Rd4} b3 {[%emt 0:00:20]} 29. a3 {[%emt 0:02:51]} ({But not} 29. Rxa4 $6 bxa2 30. Rxa2 Rd4 $11) (29. g3 $16) 29... h5 {[%emt 0:02:40]} 30. g3 {[%emt 0:01:51]} ({Don't play} 30. Rxa4 $6 Rc8+ 31. Kb1 Rd8 $11) 30... Ke7 {[%emt 0:02:36]} 31. Rxa4 {[%emt 0:00:36]} Rc8+ {[%emt 0:00:04]} 32. Kb1 {[%emt 0:00:25] Black must now prevent Rb4.} Rc2 $2 {[%emt 0:00:38][%mdl 8192] Loses the game.} (32... Rd8 $16 33. Kc1 Rc8+ 34. Kd1 Rc2) 33. Rb4 $18 {[%emt 0:00:24]} Rxh2 {[%emt 0:00:05][%cal Rh2h1]} 34. Rxb3 {[%emt 0:00:03]} h4 {[%emt 0:00:05]} 35. gxh4 {[%emt 0:00:14]} Rxh4 {[%emt 0:00:05]} 36. Rb7+ {[%emt 0:01:40]} Ke8 {[%emt 0:00:08]} 37. a4 {[%emt 0:00:21][%cal Ba3a4,Ba4a5,Ba5a6][%mdl 32] a5 is the strong threat.} Rxf4 {[%emt 0:01:39]} 38. a5 {[%emt 0:00:08] Threatens to win with a6.} Kd8 {[%emt 0:00:12]} 39. a6 {[%emt 0:00:47]} Kc8 {[%emt 0:00:04]} 40. Rb4 {[%emt 0:00:12] Weighted Error Value: White=0.07 (flawless) /Black=0.56.  Loses game:     	---       	Black=1      Mistake:       	White=1     	Black=2      Inaccurate:     	White=1     	Black=6      OK:         	White=16    	Black=6      Best:        	White=4     	Black=2      Brilliant:      	White=1     	---} 1-0

[Event "Amsterdam Chess Open 2024"]
[Site "Amsterdam"]
[Date "2024.11.01"]
[Round "1.5"]
[White "Margaryan, Artur"]
[Black "Grutter, Tim"]
[Result "0-1"]
[ECO "A65"]
[WhiteElo "2068"]
[BlackElo "2350"]
[Annotator "RC"]
[PlyCount "98"]
[EventDate "2024.10.31"]
[EventType "swiss"]
[EventCountry "NED"]
[SourceTitle "playchess.com"]
[Source "ChessBase"]
[SourceQuality "1"]
[TimeControl "5400+30"]

1. d4 {[%emt 0:00:10]} Nf6 {[%emt 0:00:06]} 2. c4 {[%emt 0:00:15]} g6 {[%emt 0:00:07]} 3. Nc3 {[%emt 0:00:11]} Bg7 {[%emt 0:00:06]} 4. e4 {[%emt 0:00:07]} d6 {[%emt 0:00:05]} 5. f3 {[%emt 0:00:05]} O-O {[%emt 0:00:13]} 6. Bg5 {[%emt 0:00:03]} c5 {[%emt 0:05:42]} 7. d5 {[%emt 0:00:06]} h6 {[%emt 0:02:08]} 8. Be3 {[%emt 0:00:06]} e6 {[%emt 0:00:34]} 9. Qd2 {[%emt 0:00:07]} exd5 {[%emt 0:00:40]} 10. cxd5 {[%emt 0:00:02]} Kh7 {[%emt 0:01:26]} 11. Nge2 {[%emt 0:01:26]} a6 {[%emt 0:02:34]} 12. a4 {[%emt 0:02:13]} Nbd7 {[%emt 0:01:40]} 13. Ng3 {[%emt 0:04:27]} Qa5 {[%emt 0:05:18]} 14. Ra3 {[%emt 0:00:56]} Qc7 {[%emt 0:03:21]} 15. Be2 {[%emt 0:00:11]} c4 {[%emt 0:05:32]} 16. O-O {[%emt 0:00:54]} Rb8 {[%emt 0:03:22]} 17. Rc1 {[%emt 0:07:17]} b5 {[%emt 0:04:08]} 18. axb5 {[%emt 0:00:09]} axb5 {[%emt 0:00:03]} 19. b4 {[%emt 0:00:07]} Ne8 {[%emt 0:19:31]} 20. Ra5 {[%emt 0:11:09]} Bxc3 {[%emt 0:00:31]} 21. Rxc3 {[%emt 0:00:53]} h5 {[%emt 0:01:52]} 22. h3 {[%emt 0:09:35]} Qd8 {[%emt 0:02:41]} 23. Bd1 {[%emt 0:09:22]} Nc5 {[%emt 0:06:00]} 24. Bc2 {[%emt 0:08:48]} Bd7 {[%emt 0:02:12]} 25. Rca3 {[%emt 0:03:05]} Na4 {[%emt 0:01:19]} 26. Kh2 {[%emt 0:17:50]} Nc7 {[%emt 0:04:35]} 27. f4 {[%emt 0:03:02]} h4 {[%emt 0:06:52]} 28. Ne2 {[%emt 0:00:46]} Ra8 {[%emt 0:00:54]} 29. Rxa8 {[%emt 0:03:21]} Nxa8 {[%emt 0:00:08]} 30. Qe1 {[%emt 0:01:55]} N8b6 {[%emt 0:04:36]} 31. Bf2 {[%emt 0:01:51]} f5 {[%emt 0:03:51]} 32. Bxh4 {[%emt 0:00:30]} Qe8 {[%emt 0:00:01]} 33. Bg5 {[%emt 0:04:03]} Kg8 {[%emt 0:00:05]} 34. Ng3 {[%emt 0:05:10]} c3 {[%emt 0:07:04]} 35. Qd1 {[%emt 0:01:42]} Nc4 {[%emt 0:00:34]} 36. Rxa4 {[%emt 0:01:50]} bxa4 {[%emt 0:00:55]} 37. Qd4 {[%emt 0:00:19]} Na3 {[%emt 0:00:31]} 38. Bd3 {[%emt 0:01:51]} Nb5 {[%emt 0:03:02]} 39. Qb6 {[%emt 0:02:39]} a3 {[%emt 0:01:06]} 40. exf5 {[%emt 0:00:47]} a2 {[%emt 0:01:19]} 41. Bxb5 {[%emt 0:01:02]} a1=Q {[%emt 0:00:59]} 42. Bd3 {[%emt 0:00:22]} Bxf5 {[%emt 0:00:59]} 43. Nxf5 {[%emt 0:00:37]} gxf5 {[%emt 0:00:09]} 44. Qxd6 {[%emt 0:00:05]} Qd1 {[%emt 0:01:15]} 45. Bc4 {[%emt 0:00:52]} c2 {[%emt 0:00:59]} 46. Qc7 {[%emt 0:00:33]} c1=Q {[%emt 0:00:31]} 47. d6+ {[%emt 0:00:04]} Rf7 {[%emt 0:00:16]} 48. d7 {[%emt 0:01:02]} Qg1+ {[%emt 0:00:11]} 49. Kg3 {[%emt 0:00:01]} Qce1+ {[%emt 0:00:59]} 0-1

[Event "Amsterdam Chess Open 2024"]
[Site "Amsterdam"]
[Date "2024.11.01"]
[Round "1.6"]
[White "Ragnarsson, Dagur"]
[Black "Bruns, Kai-Christian"]
[Result "0-1"]
[ECO "D52"]
[WhiteElo "2346"]
[BlackElo "2067"]
[Annotator "RC"]
[PlyCount "128"]
[EventDate "2024.10.31"]
[EventType "swiss"]
[EventCountry "NED"]
[SourceTitle "playchess.com"]
[Source "ChessBase"]
[SourceQuality "1"]
[TimeControl "5400+30"]

1. Nf3 {[%emt 0:00:03]} d5 {[%emt 0:00:06]} 2. d4 {[%emt 0:00:13]} Nf6 {[%emt 0:00:06]} 3. c4 {[%emt 0:00:18]} c6 {[%emt 0:00:06]} 4. Nc3 {[%emt 0:00:12]} e6 {[%emt 0:00:06]} 5. Bg5 {[%emt 0:00:57]} Nbd7 {[%emt 0:00:19]} 6. e3 {[%emt 0:00:09]} Qa5 {[%emt 0:00:08]} 7. cxd5 {[%emt 0:00:31]} Nxd5 {[%emt 0:00:07]} 8. Rc1 {[%emt 0:00:07]} Nxc3 {[%emt 0:00:35]} 9. bxc3 {[%emt 0:00:06]} Ba3 {[%emt 0:00:17]} 10. Rc2 {[%emt 0:00:06]} b6 {[%emt 0:00:08]} 11. Be2 {[%emt 0:01:02]} Ba6 {[%emt 0:00:08]} 12. O-O {[%emt 0:00:06]} Bxe2 {[%emt 0:00:05]} 13. Rxe2 {[%emt 0:02:08]} O-O {[%emt 0:00:13]} 14. e4 {[%emt 0:00:57]} Rfe8 {[%emt 0:01:05]} 15. e5 {[%emt 0:00:18]} Qxc3 {[%emt 0:04:25]} 16. Rc2 {[%emt 0:07:42]} Qa5 {[%emt 0:01:27]} 17. Rxc6 {[%emt 0:00:09]} Rac8 {[%emt 0:09:22]} 18. Qc2 {[%emt 0:00:15]} Rxc6 {[%emt 0:09:32]} 19. Qxc6 {[%emt 0:00:19]} Qd5 {[%emt 0:00:56]} 20. Qa4 {[%emt 0:00:13]} Bf8 {[%emt 0:00:58]} 21. Rc1 {[%emt 0:01:56]} a5 {[%emt 0:10:11]} 22. Rc7 {[%emt 0:02:45]} b5 {[%emt 0:04:55]} 23. Qc2 {[%emt 0:04:22]} h6 {[%emt 0:04:51]} 24. Be3 {[%emt 0:02:15]} Nb6 {[%emt 0:03:09]} 25. Nd2 {[%emt 0:00:38]} a4 {[%emt 0:01:00]} 26. Ne4 {[%emt 0:02:54]} b4 {[%emt 0:08:53]} 27. Bxh6 {[%emt 0:11:19]} Qxd4 {[%emt 0:02:14]} 28. g3 {[%emt 0:16:16]} b3 {[%emt 0:08:16]} 29. axb3 {[%emt 0:00:10]} axb3 {[%emt 0:00:01]} 30. Qb1 {[%emt 0:14:24]} Ra8 {[%emt 0:01:50]} 31. Be3 {[%emt 0:01:22]} Qxe5 {[%emt 0:01:29]} 32. Bf4 {[%emt 0:01:27]} Qa1 {[%emt 0:01:45]} 33. Nd2 {[%emt 0:01:42]} b2 {[%emt 0:04:32]} 34. Rc2 {[%emt 0:07:33]} Qxb1+ {[%emt 0:05:46]} 35. Nxb1 {[%emt 0:00:05]} Ra1 {[%emt 0:00:15]} 36. Rxb2 {[%emt 0:00:05]} Nc4 {[%emt 0:00:13]} 37. Rb8 {[%emt 0:00:04]} Na3 {[%emt 0:00:14]} 38. Rxf8+ {[%emt 0:05:05]} Kxf8 {[%emt 0:00:18]} 39. Bd6+ {[%emt 0:00:02]} Ke8 {[%emt 0:00:18]} 40. Bxa3 {[%emt 0:00:03]} Rxb1+ {[%emt 0:00:11]} 41. Kg2 {[%emt 0:00:01]} Rb3 {[%emt 0:00:39]} 42. Bc5 {[%emt 0:00:06]} g5 {[%emt 0:02:51]} 43. Be3 {[%emt 0:00:26]} f6 {[%emt 0:02:31]} 44. Bd4 {[%emt 0:00:58]} Kf7 {[%emt 0:00:20]} 45. Bc5 {[%emt 0:00:57]} f5 {[%emt 0:00:41]} 46. Bd6 {[%emt 0:00:37]} Rb2 {[%emt 0:01:29]} 47. Be5 {[%emt 0:00:13]} Re2 {[%emt 0:00:08]} 48. Bd4 {[%emt 0:00:09]} e5 {[%emt 0:00:23]} 49. Kf3 {[%emt 0:00:48]} Re4 {[%emt 0:00:31]} 50. Bb6 {[%emt 0:00:32]} Rb4 {[%emt 0:00:27]} 51. Ba5 {[%emt 0:00:36]} Rb3+ {[%emt 0:00:18]} 52. Kg2 {[%emt 0:00:08]} Kg6 {[%emt 0:00:29]} 53. Bc7 {[%emt 0:00:28]} e4 {[%emt 0:00:34]} 54. Bd6 {[%emt 0:00:24]} Rf3 {[%emt 0:01:07]} 55. Bc7 {[%emt 0:00:31]} f4 {[%emt 0:00:35]} 56. h3 {[%emt 0:00:37]} Kf5 {[%emt 0:00:49]} 57. Bd6 {[%emt 0:03:11]} Rd3 {[%emt 0:00:14]} 58. Bc7 {[%emt 0:00:08]} Rc3 {[%emt 0:00:27]} 59. Bb8 {[%emt 0:00:17]} Rc2 {[%emt 0:00:59]} 60. Kf1 {[%emt 0:01:11]} f3 {[%emt 0:01:30]} 61. g4+ {[%emt 0:00:21]} Ke6 {[%emt 0:00:35]} 62. Kg1 {[%emt 0:00:04]} Rc1+ {[%emt 0:00:57]} 63. Kh2 {[%emt 0:00:04]} e3 {[%emt 0:00:07]} 64. fxe3 {[%emt 0:00:10]} f2 {[%emt 0:00:06]} 0-1

[Event "Amsterdam Chess Open 2024"]
[Site "Amsterdam"]
[Date "2024.11.01"]
[Round "1.7"]
[White "Cornelisse, Ticho"]
[Black "Brink, Barry"]
[Result "0-1"]
[ECO "E04"]
[WhiteElo "2064"]
[BlackElo "2342"]
[Annotator "RC"]
[PlyCount "42"]
[EventDate "2024.10.31"]
[EventType "swiss"]
[EventCountry "NED"]
[SourceTitle "playchess.com"]
[Source "ChessBase"]
[SourceQuality "1"]
[TimeControl "5400+30"]

1. d4 {[%emt 0:00:04]} Nf6 {[%emt 0:00:11]} 2. g3 {[%emt 0:00:04]} e6 {[%emt 0:00:07]} 3. Nf3 {[%emt 0:00:08]} d5 {[%emt 0:00:21]} 4. c4 {[%emt 0:00:04]} dxc4 {[%emt 0:00:32]} 5. Bg2 {[%emt 0:00:07]} Nc6 {[%emt 0:00:14]} 6. O-O {[%emt 0:05:53]} Rb8 {[%emt 0:00:43]} 7. a4 {[%emt 0:08:13]} a6 {[%emt 0:02:39]} 8. Nc3 {[%emt 0:09:05]} Be7 {[%emt 0:06:52]} 9. e4 {[%emt 0:07:02]} O-O {[%emt 0:00:58]} 10. d5 {[%emt 0:23:09]} exd5 {[%emt 0:09:02]} 11. exd5 {[%emt 0:00:24]} Nb4 {[%emt 0:02:36]} 12. Ne5 {[%emt 0:01:27]} Bf5 {[%emt 0:05:14]} 13. Qf3 {[%emt 0:03:25]} Qc8 {[%emt 0:01:11]} 14. Bf4 {[%emt 0:05:04]} Rd8 {[%emt 0:16:42]} 15. Rad1 {[%emt 0:12:33]} Bd6 {[%emt 0:07:31]} 16. Qe3 {[%emt 0:04:15]} Re8 {[%emt 0:02:22]} 17. Rfe1 {[%emt 0:00:53]} Nc2 {[%emt 0:04:05]} 18. Qd2 {[%emt 0:00:41]} Nxe1 {[%emt 0:00:30]} 19. Rxe1 {[%emt 0:00:06]} Bh3 {[%emt 0:04:18]} 20. Bh1 {[%emt 0:09:53]} Qf5 {[%emt 0:02:38]} 21. Qd4 {[%emt 0:04:21]} g5 {[%emt 0:05:04]} 0-1